bitfinex-derivatives/quotes_ETHF0:USTF0_20250730
["timestamp","ask_amount","ask_price","bid_price","bid_amount"]
[1753903641615,0.8855,3719.2,3719.1,5.0429]
[1753903641818,41.33771,3719.6,3719.4,0.53772]
[1753903642014,0.53776,3719.3,3719.2,0.3771]
[1753903642208,2.2691,3719.3,3719.2,2.37287]
[1753903642417,2.2691,3719.3,3718.5,5.20366]
[1753903642418,0.53783,3718.8,3718.5,5.20366]
[1753903642612,0.53785,3718.7,3718.5,5.20366]
[1753903642915,3.7486,3718.6,3718.5,3.2078]
[1753903643612,2.2691,3718.6,3718.5,5.0429]
[1753903644014,3.7486,3718.6,3718.5,3.2078]
[1753903644320,1.92141,3719.0,3718.5,5.0429]
[1753903644518,2.2691,3718.9,3718.8,1.99581]
[1753903644716,0.53774,3719.5,3718.7,1.3446]
[1753903645016,0.8855,3719.4,3719.3,0.91485]
[1753903645213,0.8855,3719.2,3719.1,3.74558]
[1753903645413,2.2691,3719.2,3719.1,3.2078]
[1753903645606,4.28642,3718.8,3718.7,3.2078]
[1753903645814,0.53788,3718.4,3718.3,4.6658]
[1753903646008,1.3836,3719.4,3718.5,0.3771]
[1753903646214,2.2691,3718.9,3718.8,4.6658]
[1753903646413,3.7486,3718.9,3718.8,4.6658]
[1753903646922,2.2691,3718.9,3718.8,4.6658]
[1753903647620,0.53779,3719.1,3718.9,2.3729]
[1753903647813,2.2691,3719.0,3718.9,2.3729]
[1753903648013,2.2691,3719.0,3718.9,1.458]
[1753903648211,0.53781,3718.9,3718.6,0.53785]
[1753903648519,0.8855,3718.7,3718.6,2.37295]
[1753903648725,0.9191,3718.9,3718.8,2.36462]
[1753903648920,2.3261,3718.9,3718.8,2.36462]
[1753903649116,0.9191,3718.9,3718.8,5.57242]
[1753903649522,0.9191,3719.2,3719.1,0.53777]
[1753903649724,0.9191,3719.3,3719.2,0.53775]
[1753903649915,0.9191,3719.5,3719.4,0.3808]
[1753903650116,0.53775,3719.4,3719.2,3.74555]
[1753903650316,41.7191,3719.6,3719.5,1.98371]
[1753903650617,0.53772,3719.5,3719.3,0.53774]
[1753903650812,0.53772,3719.5,3719.3,1.98374]
[1753903650813,4.37872,3719.5,3719.3,1.98374]
[1753903651018,0.9191,3719.4,3719.3,1.98374]
[1753903651220,0.9191,3719.4,3719.3,2.36454]
[1753903651420,0.38,3719.7,3719.6,0.53771]
[1753903651617,0.38,3719.7,3719.6,5.57231]
[1753903651921,2.3261,3720.7,3720.6,1.446]
[1753903652114,0.53751,3721.0,3720.6,5.0346]
[1753903652316,20.879,3721.3,3720.6,3.2078]
[1753903652522,1.94455,3720.7,3720.6,3.2078]
[1753903652722,2.3261,3720.3,3720.2,0.91841]
[1753903653121,1.407,3720.8,3720.5,1.446]
[1753903653322,2.3261,3720.8,3720.7,1.8268]
[1753903653524,43.1261,3720.8,3720.7,1.8268]
[1753903653719,43.1261,3720.8,3720.7,1.446]
[1753903654223,0.9191,3720.7,3720.6,0.3808]
[1753903654428,41.33754,3720.8,3720.5,1.44228]
[1753903654630,40.8,3720.8,3720.7,0.9047]
[1753903654830,0.53753,3720.9,3720.8,1.8268]
[1753903655130,0.53751,3721.0,3720.7,0.9047]
[1753903655332,0.53751,3721.0,3720.9,1.2855]
[1753903655333,0.53752,3721.0,3720.9,1.2855]
[1753903655525,0.5375,3721.1,3720.9,0.9047]
[1753903655728,1.45657,3721.3,3721.0,0.53751]
[1753903655931,0.9191,3721.3,3721.2,1.8268]
[1753903656127,0.9191,3721.6,3721.3,1.446]
[1753903656436,1.45653,3721.6,3721.5,1.8268]
[1753903656731,41.9358,3722.2,3721.5,1.8268]
[1753903656923,2.86349,3721.9,3721.7,3.2078]
[1753903657129,0.53748,3721.2,3721.1,3.2078]
[1753903657430,4.37848,3721.2,3721.1,3.2078]
[1753903657925,4.37854,3720.8,3720.7,3.2078]
[1753903658131,0.53751,3721.0,3720.7,3.74534]
[1753903658328,0.9191,3720.9,3720.8,1.8268]
[1753903658521,0.5375,3721.1,3720.7,3.2078]
[1753903658723,0.53752,3721.0,3720.8,1.98352]
[1753903658933,0.53752,3721.0,3720.8,1.446]
[1753903659128,0.53748,3721.2,3720.9,0.53752]
[1753903659329,1.94448,3721.2,3721.1,1.446]
[1753903659633,1.94448,3721.2,3721.1,5.0346]
[1753903659936,0.53748,3721.2,3721.1,5.0346]
[1753903660132,2.86358,3721.2,3721.1,4.6538]
[1753903660335,4.37848,3721.2,3721.1,3.2078]
[1753903660926,0.53754,3720.8,3720.7,4.6538]
[1753903661130,0.53754,3720.8,3720.3,3.2078]
[1753903661131,1.34394,3720.6,3720.3,3.2078]
[1753903661335,2.9219,3720.4,3720.3,3.2078]
[1753903661537,3.841,3720.4,3720.3,3.2078]
[1753903661733,4.37859,3720.4,3720.3,3.2078]
[1753903662036,4.37869,3719.8,3719.7,3.2078]
[1753903662238,3.841,3719.8,3719.7,3.2078]
[1753903662537,0.53769,3719.8,3719.6,1.446]
[1753903662737,1.407,3719.8,3719.7,1.446]
[1753903662936,0.53767,3719.9,3719.5,0.53771]
[1753903663128,1.45677,3719.9,3719.8,1.8268]
[1753903663331,2.86377,3719.9,3719.8,1.8268]
[1753903663533,2.3261,3719.4,3719.3,3.2078]
[1753903663733,3.841,3719.4,3719.3,3.2078]
[1753903664335,0.53773,3719.5,3718.7,5.0346]
[1753903664336,0.9191,3718.8,3718.7,5.0346]
[1753903665134,3.841,3718.4,3718.3,3.2078]
[1753903665739,4.37894,3718.0,3717.9,3.2078]
[1753903666233,4.55239,3718.8,3717.9,4.65045]
[1753903666438,2.3261,3718.6,3718.2,0.53791]
[1753903666742,0.9191,3718.5,3718.4,1.98388]
[1753903666938,0.9191,3718.5,3718.4,2.36468]
[1753903667140,2.3261,3718.5,3718.4,1.8268]
[1753903667432,2.3261,3718.5,3717.9,4.1125]
[1753903667640,2.434,3718.4,3717.9,4.6538]
[1753903667940,1.5149,3718.2,3718.0,0.53793]
[1753903668138,2.3261,3718.1,3718.0,0.53793]
[1753903668742,2.3261,3718.1,3718.0,1.446]
[1753903669041,3.2078,3718.8,3718.0,1.446]
[1753903669042,0.9191,3718.5,3718.3,0.53788]
[1753903669236,2.3261,3718.5,3718.4,1.8268]
[1753903669535,0.9191,3718.9,3718.3,4.55254]
[1753903669734,0.9191,3718.9,3718.8,0.53782]
[1753903669935,23.9868,3719.6,3718.7,3.2078]
[1753903670135,3.841,3719.4,3718.8,1.446]
[1753903670437,2.9219,3719.4,3719.2,1.98375]
[1753903670631,2.3261,3719.3,3718.7,3.5856]
[1753903670831,2.434,3719.2,3718.9,1.446]
[1753903671035,3.841,3719.1,3719.0,0.53778]
[1753903671232,3.2078,3719.2,3718.3,4.6538]
[1753903671437,3.841,3718.6,3718.4,0.53788]
[1753903671741,0.53785,3718.7,3718.5,0.53786]
[1753903671943,0.53783,3718.8,3718.6,0.53784]
[1753903672235,3.841,3718.4,3718.3,3.2078]
[1753903672435,0.9191,3719.0,3718.4,2.7285]
[1753903672636,0.9191,3719.0,3718.9,0.53781]
[1753903672836,3.2078,3719.2,3719.1,0.53778]
[1753903673032,40.8,3719.5,3719.1,0.53778]
[1753903673033,0.9191,3719.5,3719.4,1.446]
[1753903673435,0.9191,3719.5,3719.4,1.8238]
[1753903674637,1.45682,3719.5,3719.4,1.8238]
[1753903674841,1.45682,3719.5,3719.3,0.53774]
[1753903674842,0.9191,3719.9,3719.7,0.53769]
[1753903675147,1.45668,3720.5,3720.2,0.53762]
[1753903675337,0.9191,3720.0,3719.9,1.446]
[1753903675950,3.2078,3720.6,3719.8,1.8238]
[1753903675951,2.9219,3720.1,3719.8,1.8238]
[1753903676245,0.9191,3720.0,3719.9,1.446]
[1753903676445,1.407,3720.3,3719.9,1.8238]
[1753903676746,2.3261,3720.2,3720.1,1.98363]
[1753903676942,2.3261,3720.0,3719.9,0.53765]
[1753903677438,2.9219,3720.1,3720.0,1.446]
[1753903677644,0.9191,3720.4,3720.3,0.3778]
[1753903677948,2.05244,3720.8,3720.5,0.53756]
[1753903678146,1.94456,3720.7,3720.5,0.91536]
[1753903678448,0.9191,3720.6,3720.5,2.36136]
[1753903678847,2.28,3720.6,3720.5,2.36136]
[1753903679042,1.3609,3721.0,3720.9,0.53752]
[1753903679254,0.9176,3720.9,3720.6,2.7559]
[1753903679551,0.9176,3721.0,3720.9,0.91422]
[1753903679744,22.2141,3721.6,3720.9,0.8649]
[1753903680052,2.836,3721.3,3721.2,0.53746]
[1753903680256,43.636,3721.3,3721.2,0.53746]
[1753903680544,44.5536,3721.3,3721.2,0.53746]
[1753903680746,2.2785,3721.7,3721.6,2.05172]
[1753903680949,0.53742,3721.6,3721.4,0.53744]
[1753903681144,3.7536,3721.5,3721.4,0.53744]
[1753903681340,4.29104,3721.5,3721.3,0.53745]
[1753903681642,3.7536,3721.4,3721.3,0.53745]
[1753903682041,4.29105,3721.4,3721.2,0.53747]
[1753903682245,1.3609,3721.4,3721.3,0.53745]
[1753903682448,0.53751,3721.0,3720.8,3.2078]
[1753903682644,1.3609,3720.8,3720.0,0.53763]
[1753903682853,3.7536,3720.0,3719.9,0.53766]
[1753903683250,2.2785,3720.0,3719.9,2.05196]
[1753903683547,0.9176,3720.6,3719.9,6.34415]
[1753903683849,4.1254,3720.7,3720.5,0.91428]
[1753903684043,0.9176,3720.7,3720.6,1.891]
[1753903684239,2.2785,3720.7,3720.6,1.891]
[1753903684955,3.7536,3720.6,3720.5,0.53758]
[1753903685348,2.2785,3720.5,3719.8,1.891]
[1753903685546,3.7536,3720.4,3720.3,0.53759]
[1753903685742,3.2078,3720.7,3720.4,0.53758]
[1753903685961,41.7176,3720.6,3720.5,0.53757]
[1753903686244,0.9176,3720.6,3720.5,0.53757]
[1753903686448,3.7536,3720.6,3720.5,0.53757]
[1753903686649,2.2785,3720.6,3720.5,2.42857]
[1753903686844,2.2785,3721.0,3720.6,3.23489]
[1753903687047,0.9176,3721.0,3720.9,0.53752]
[1753903687247,6.9614,3721.3,3721.2,2.05177]
[1753903687443,2.2785,3721.3,3721.2,2.05177]
[1753903687643,0.9176,3721.3,3721.2,2.42847]
[1753903687856,2.2785,3721.3,3721.2,2.05177]
[1753903688059,0.9176,3721.3,3721.2,2.42847]
[1753903688357,3.7536,3721.3,3721.2,0.53747]
[1753903689256,3.7536,3721.3,3721.2,1.5143]
[1753903689957,3.7536,3721.3,3721.1,0.53748]
[1753903690252,40.8,3721.8,3721.1,1.5143]
[1753903690451,3.7536,3721.7,3721.1,1.5143]
[1753903690951,0.9176,3721.5,3721.4,0.53743]
[1753903691149,0.9176,3721.5,3721.4,2.05173]
[1753903691456,0.9176,3721.5,3721.4,2.42843]
[1753903691751,3.7536,3721.5,3721.4,2.05173]
[1753903691953,2.2785,3721.5,3721.4,2.05173]
[1753903692145,0.53741,3721.7,3721.6,2.05172]
[1753903692146,0.9176,3721.7,3721.6,2.05172]
[1753903692347,0.9176,3721.7,3721.6,2.42842]
[1753903693660,3.7536,3721.7,3721.2,1.2416]
[1753903693844,4.29102,3721.6,3721.5,0.53742]
[1753903694049,3.7536,3721.6,3721.5,0.53742]
[1753903694854,42.1609,3721.8,3721.7,2.0517]
[1753903695148,22.0159,3722.3,3722.2,0.53733]
[1753903695352,22.9335,3722.3,3722.2,2.05163]
[1753903695552,2.2785,3722.3,3722.2,2.42833]
[1753903695958,3.7536,3722.3,3722.2,0.53733]
[1753903696259,41.33731,3722.4,3721.8,1.34347]
[1753903696260,3.7536,3722.1,3722.0,0.53736]
[1753903696446,2.2785,3722.1,3722.0,2.42836]
[1753903696762,0.9176,3722.1,3722.0,2.42836]
[1753903697157,2.2785,3722.1,3722.0,2.42836]
[1753903697453,0.53732,3722.3,3721.6,3.2078]
[1753903697454,3.7536,3722.3,3722.2,2.05163]
[1753903697653,0.53735,3722.1,3722.0,0.53735]
[1753903697956,3.7536,3722.1,3721.8,1.891]
[1753903698155,3.2078,3722.5,3721.6,3.2078]
[1753903698156,3.7536,3721.7,3721.6,3.74521]
[1753903698354,4.291,3721.7,3721.6,3.74521]
[1753903698555,4.291,3721.7,3721.6,3.2078]
[1753903698755,0.53743,3721.5,3721.4,0.53744]
[1753903698957,3.7536,3721.5,3721.4,0.53744]
[1753903699157,3.7536,3721.5,3721.4,2.05174]
[1753903699462,3.7536,3721.5,3721.4,1.5143]
[1753903699463,2.2785,3721.5,3721.4,1.5143]
[1753903699958,0.9176,3721.5,3721.4,1.891]
[1753903700158,2.2785,3721.5,3721.4,1.891]
[1753903700754,0.9176,3721.5,3721.4,1.891]
[1753903701462,0.5374,3721.8,3721.6,0.53741]
[1753903701653,0.9176,3721.7,3721.6,0.91411]
[1753903701858,0.53732,3722.3,3722.2,0.53733]
[1753903702152,22.50119,3722.5,3722.4,2.0516]
[1753903702353,43.61579,3722.5,3722.4,2.0516]
[1753903702553,2.2785,3722.5,3722.4,2.0516]
[1753903702758,2.2785,3722.5,3722.4,2.4283]
[1753903703359,0.9176,3722.5,3722.4,2.4283]
[1753903703561,0.38,3722.7,3722.6,2.42827]
[1753903703759,0.38,3722.7,3722.6,3.29317]
[1753903705456,0.38,3722.7,3722.4,0.53729]
[1753903705654,3.7536,3722.5,3722.4,0.53729]
[1753903705957,3.7536,3722.5,3722.4,1.5143]
[1753903706459,3.7536,3722.5,3722.4,1.891]
[1753903707062,0.9176,3722.5,3722.4,1.891]
[1753903707258,1.7409,3722.7,3722.5,2.42829]
[1753903707457,0.9176,3722.6,3722.5,0.91399]
[1753903707864,2.2785,3722.6,3722.5,2.42829]
[1753903708558,0.53729,3722.5,3722.3,4.6162]
[1753903708760,2.168,3722.4,3722.3,2.32191]
[1753903709058,1.5071,3722.4,3722.3,0.53732]
[1753903709362,0.53728,3722.6,3722.5,0.3762]
[1753903709563,0.38,3722.7,3722.6,0.53727]
[1753903709864,0.38,3722.7,3722.6,3.17137]
[1753903710456,1.2627,3722.7,3722.6,3.17137]
[1753903710759,1.2627,3722.7,3722.6,2.32187]
[1753903710963,0.38,3722.7,3722.6,3.17137]
[1753903712658,0.38,3722.7,3722.6,2.32187]
[1753903712958,0.38,3722.7,3722.6,3.17137]
[1753903713860,2.168,3722.6,3722.3,3.2078]
[1753903714059,2.3898,3722.4,3722.3,3.2078]
[1753903714365,3.6751,3722.4,3722.3,3.2078]
[1753903714762,4.21247,3721.9,3721.8,3.2078]
[1753903715263,2.168,3721.9,3721.4,3.2078]
[1753903715455,0.53749,3721.1,3721.0,3.584]
[1753903715662,1.42019,3721.1,3721.0,4.9924]
[1753903715857,1.2853,3721.5,3721.0,4.9924]
[1753903716059,0.8827,3721.3,3721.2,2.32206]
[1753903716358,1.34326,3722.5,3722.0,2.6341]
[1753903716359,0.8827,3722.5,3722.0,2.6341]
[1753903716560,0.38,3722.7,3722.4,2.6341]
[1753903716761,2.168,3722.6,3722.5,1.7846]
[1753903716961,3.6751,3722.6,3722.5,1.4084]
[1753903717162,2.168,3722.6,3722.5,1.7846]
[1753903717357,2.168,3722.6,3722.5,1.4084]
[1753903717564,3.6751,3722.6,3722.4,0.53729]
[1753903717762,0.38,3722.7,3722.6,0.53727]
[1753903718468,4.0551,3722.7,3722.6,0.53727]
[1753903718663,4.0551,3722.7,3722.6,1.94567]
[1753903719366,1.2627,3722.7,3722.6,2.32187]
[1753903719566,0.38,3722.7,3722.6,3.17137]
[1753903721671,0.8827,3723.5,3723.4,2.32176]
[1753903722167,3.6751,3723.5,3723.4,1.94556]
[1753903722675,0.8827,3723.5,3723.4,2.32176]
[1753903723166,6.0002,3723.9,3723.8,0.5371]
[1753903723167,6.8829,3723.9,3723.8,0.5371]
[1753903723472,2.168,3723.9,3723.8,1.9455]
[1753903724062,3.6751,3723.9,3723.8,1.9455]
[1753903724274,2.168,3723.9,3723.8,1.9455]
[1753903724466,2.168,3723.9,3723.8,2.3217]
[1753903725472,3.6751,3723.9,3723.8,1.9455]
[1753903725874,3.6751,3723.9,3723.8,0.5371]
[1753903726078,3.6751,3723.9,3723.4,2.32176]
[1753903726079,3.6751,3724.2,3723.4,1.4084]
[1753903726368,3.6751,3724.2,3722.8,3.2078]
[1753903726369,1.5071,3723.7,3722.8,3.2078]
[1753903726563,0.53715,3723.5,3723.3,3.74496]
[1753903726767,3.6751,3723.4,3723.3,0.53716]
[1753903727171,4.21226,3723.4,3723.2,0.53718]
[1753903727368,0.53715,3723.5,3723.3,0.53716]
[1753903727570,40.8,3723.9,3723.4,0.53715]
[1753903727769,0.53712,3723.7,3723.2,3.2078]
[1753903727970,1.5071,3723.6,3723.3,0.3762]
[1753903728174,3.6751,3723.5,3723.4,0.53715]
[1753903728675,3.6751,3723.5,3723.4,1.94555]
[1753903729470,3.6751,3723.5,3723.4,1.4084]
[1753903729667,0.53716,3723.4,3723.2,3.74498]
[1753903729876,3.6751,3723.3,3723.2,4.6162]
[1753903730063,3.6751,3723.3,3723.2,3.2078]
[1753903730264,2.168,3722.9,3722.8,4.6162]
[1753903730465,3.6751,3722.9,3722.8,3.2078]
[1753903731074,0.53724,3722.8,3722.6,0.53727]
[1753903731273,1.34313,3722.8,3721.7,0.53739]
[1753903731575,2.168,3721.8,3721.7,2.3219]
[1753903731777,0.8827,3721.8,3721.7,2.3219]
[1753903732477,0.8827,3722.5,3721.8,3.66538]
[1753903732667,0.8827,3722.5,3722.3,2.9149]
[1753903732876,0.53727,3722.6,3722.4,2.3219]
[1753903733069,3.6751,3722.5,3722.4,2.3219]
[1753903733269,41.6827,3722.7,3722.6,2.3219]
[1753903733579,0.8827,3722.7,3722.6,2.3219]
[1753903733974,2.168,3722.7,3722.6,2.3219]
[1753903734379,0.8827,3722.7,3722.6,2.3219]
[1753903734675,0.8827,3722.7,3722.5,3.74508]
[1753903734676,4.21237,3722.6,3722.5,3.2078]
[1753903734869,1.5071,3722.3,3721.8,3.2078]
[1753903735074,1.42006,3722.1,3722.0,1.4084]
[1753903735377,0.8827,3721.9,3721.8,5.5297]
[1753903735578,1.42013,3721.5,3721.4,0.9135]
[1753903735770,0.53749,3721.1,3721.0,3.2078]
[1753903735980,3.6751,3721.1,3721.0,3.2078]
[1753903736174,0.8827,3721.1,3721.0,6.0672]
[1753903736480,1.42019,3721.1,3721.0,5.5297]
[1753903736677,4.21259,3721.1,3721.0,4.6162]
[1753903736880,0.8827,3721.1,3721.0,5.5297]
[1753903737074,3.6751,3721.1,3721.0,3.2078]
[1753903737777,3.6751,3721.6,3721.0,4.1213]
[1753903737971,3.6751,3721.6,3721.5,2.3219]
[1753903737972,0.8827,3721.6,3721.5,2.3219]
[1753903738285,4.21252,3721.6,3721.5,1.4084]
[1753903738475,3.6751,3721.5,3721.2,0.53747]
[1753903738670,0.53739,3721.8,3721.4,3.74525]
[1753903738980,3.74517,3721.9,3721.6,0.53742]
[1753903739182,3.74517,3721.9,3721.6,1.4656]
[1753903739183,2.0176,3721.8,3721.6,1.4656]
[1753903739482,3.6756,3721.7,3721.6,1.4656]
[1753903739673,3.6756,3721.7,3721.4,3.2078]
[1753903739880,2.1954,3721.6,3721.5,1.4656]
[1753903740085,0.9154,3721.6,3721.5,2.3756]
[1753903740974,2.1954,3722.0,3721.5,5.5834]
[1753903741171,1.34299,3723.2,3721.5,5.5834]
[1753903741172,1.28,3722.5,3722.4,2.3756]
[1753903741580,1.81724,3722.9,3722.6,0.53727]
[1753903741880,3.6756,3722.5,3722.4,0.53729]
[1753903742081,3.6756,3722.5,3722.4,3.74509]
[1753903742982,0.9154,3722.5,3722.4,6.12069]
[1753903743172,2.1954,3722.5,3722.4,6.12069]
[1753903743778,2.1954,3722.5,3722.4,3.74509]
[1753903744083,3.6756,3722.5,3722.4,6.12069]
[1753903744878,0.9154,3722.5,3722.4,6.12069]
[1753903745078,2.1954,3722.5,3722.4,6.12069]
[1753903745282,3.6756,3722.5,3722.4,5.21069]
[1753903745585,3.6756,3722.5,3722.4,3.74509]
[1753903746086,4.2129,3722.5,3722.3,0.53731]
[1753903746286,3.6756,3722.4,3722.3,0.53731]
[1753903746581,3.6756,3722.4,3722.3,2.91291]
[1753903746984,2.1954,3722.4,3722.3,2.91291]
[1753903747385,0.9154,3722.4,3722.3,2.91291]
[1753903747779,0.9154,3722.8,3722.4,1.34324]
[1753903747978,3.2078,3723.0,3722.9,0.53723]
[1753903748276,1.4802,3722.8,3722.3,1.34328]
[1753903748482,3.6756,3722.9,3722.8,0.53724]
[1753903749086,44.54502,3723.0,3722.5,1.4656]
[1753903749292,44.0078,3723.0,3722.9,0.53723]
[1753903749593,47.6834,3723.0,3722.9,0.53723]
[1753903749774,0.53729,3722.6,3722.0,3.2078]
[1753903749978,0.9154,3722.4,3722.3,0.53731]
[1753903750279,3.6756,3722.4,3722.3,0.53731]
[1753903750675,3.6756,3722.4,3722.0,1.3434]
[1753903750676,3.6756,3722.1,3722.0,0.53736]
[1753903751476,3.2078,3722.6,3722.5,0.53729]
[1753903751680,3.2078,3722.6,3721.8,2.68696]
[1753903751681,3.6756,3722.9,3722.7,0.53725]
[1753903751880,3.6756,3722.8,3722.7,0.53725]
[1753903752088,2.1954,3722.8,3722.7,2.91285]
[1753903753086,0.9154,3722.8,3722.7,2.91285]
[1753903754984,3.6756,3723.2,3723.1,2.9128]
[1753903755890,0.9154,3723.2,3723.1,2.9128]
[1753903756286,3.6756,3723.7,3723.6,2.00273]
[1753903756490,3.6756,3723.7,3723.6,2.91273]
[1753903756987,3.6756,3723.7,3723.6,0.53713]
[1753903757485,3.6756,3723.9,3723.8,0.53709]
[1753903757987,1.4802,3723.7,3723.4,1.3429]
[1753903758190,3.6756,3723.7,3723.6,0.53713]
[1753903759289,2.93275,3723.5,3723.4,0.53715]
[1753903759587,2.73256,3723.4,3723.3,0.53717]
[1753903759790,3.6756,3723.3,3723.2,0.53718]
[1753903760088,2.01739,3723.2,3723.0,3.2078]
[1753903760291,4.21278,3723.3,3723.2,0.53718]
[1753903760590,3.6756,3723.3,3723.2,0.53718]
[1753903760990,3.6756,3723.3,3723.2,2.00278]
[1753903761293,2.1954,3723.3,3723.2,2.00278]
[1753903761482,2.1954,3723.3,3723.2,2.91278]
[1753903761686,0.9154,3723.3,3723.2,2.91278]
[1753903761992,0.53723,3723.0,3722.9,0.53722]
[1753903762181,4.21283,3723.0,3722.9,0.53722]
[1753903762387,0.53723,3723.0,3722.8,0.53724]
[1753903762588,3.6756,3722.9,3722.8,0.53724]
[1753903762781,0.53724,3722.8,3722.7,0.53725]
[1753903762985,3.6756,3722.8,3722.7,0.53725]
[1753903763398,4.21284,3722.8,3722.7,0.53725]
[1753903763686,3.6756,3722.8,3722.7,0.53725]
[1753903763891,44.4756,3722.8,3722.7,0.53725]
[1753903764388,40.8,3722.8,3722.6,0.53727]
[1753903764588,3.6756,3722.7,3722.6,0.53727]
[1753903764893,0.9154,3722.7,3722.6,2.91287]
[1753903765287,40.8,3722.8,3722.6,1.12787]
[1753903765494,2.1954,3723.0,3722.9,2.91283]
[1753903765689,2.7602,3723.0,3722.6,0.91]
[1753903765895,40.8,3722.9,3722.6,0.53726]
[1753903766187,0.53725,3722.8,3722.6,0.53727]
[1753903766387,3.6756,3722.7,3722.6,0.53727]
[1753903766589,0.9154,3722.7,3722.6,2.91287]
[1753903766788,0.9154,3722.7,3722.6,3.50347]
[1753903767094,0.9154,3722.7,3722.6,2.91287]
[1753903767295,2.1954,3722.7,3722.6,2.91287]
[1753903767485,2.1954,3722.7,3722.0,1.34339]
[1753903767486,0.53733,3722.2,3722.1,4.6734]
[1753903767688,0.9154,3721.8,3721.7,2.91299]
[1753903768792,1.28,3722.1,3722.0,0.53736]
[1753903768997,2.1255,3722.1,3722.0,2.87096]
[1753903769288,0.8455,3722.1,3722.0,2.87096]
[1753903769489,1.3941,3722.5,3722.4,0.5373]
[1753903769689,0.8455,3722.5,3722.4,2.8709]
[1753903770588,44.15814,3722.9,3722.7,0.53725]
[1753903770788,0.8455,3722.8,3722.7,1.45155]
[1753903770995,4.20366,3722.7,3722.6,0.53727]
[1753903771196,3.6664,3722.7,3722.6,0.53727]
[1753903771393,2.2396,3722.7,3722.6,2.87087]
[1753903771798,3.6664,3722.7,3722.6,2.87087]
[1753903771993,0.8455,3722.7,3722.6,2.87087]
[1753903772193,42.14312,3722.9,3722.4,0.53729]
[1753903772396,3.6664,3722.7,3722.3,3.2078]
[1753903772593,0.53734,3722.2,3722.0,1.4193]
[1753903772796,3.6664,3722.0,3721.9,3.2078]
[1753903773002,3.6664,3722.0,3721.9,3.74517]
[1753903773299,0.8455,3722.0,3721.9,6.07877]
[1753903773703,0.8455,3722.0,3721.9,5.5414]
[1753903774000,2.2396,3722.0,3721.9,5.5414]
[1753903774400,0.8455,3722.0,3721.9,5.5414]
[1753903774591,0.8455,3722.2,3722.1,0.5935]
[1753903774796,0.8455,3722.7,3722.6,2.87087]
[1753903775508,2.2396,3722.7,3722.6,2.87087]
[1753903775796,0.8455,3722.7,3722.6,2.87087]
[1753903775995,0.8455,3723.0,3722.9,2.87083]
[1753903776803,2.2396,3723.0,3722.9,2.87083]
[1753903777197,0.8455,3723.0,3722.9,2.87083]
[1753903778101,2.2396,3723.0,3722.9,2.87083]
[1753903778304,3.6664,3723.0,3722.8,0.53724]
[1753903778500,20.238,3723.5,3723.0,0.53722]
[1753903778501,0.5372,3723.2,3723.0,0.53722]
[1753903778900,2.8209,3723.3,3722.9,0.53723]
[1753903779202,0.53721,3723.1,3723.0,0.53721]
[1753903779704,4.20361,3723.1,3723.0,0.53721]
[1753903780002,3.6664,3723.1,3723.0,0.53721]
[1753903780398,0.53722,3723.0,3722.9,0.53723]
[1753903780606,3.6664,3723.0,3722.9,0.53723]
[1753903780904,0.53723,3722.9,3722.8,0.53724]
[1753903781104,0.53723,3722.9,3722.7,5.5414]
[1753903781105,1.4268,3722.9,3722.7,1.45155]
[1753903781304,3.6664,3722.8,3722.6,0.53727]
[1753903781499,3.6664,3722.7,3722.6,0.53727]
[1753903781801,0.8455,3722.7,3722.6,2.87087]
[1753903782002,0.8455,3723.0,3722.9,1.45153]
[1753903782305,3.6664,3723.0,3722.9,1.45153]
[1753903782505,2.2396,3722.9,3722.8,0.53724]
[1753903782703,0.53725,3722.8,3722.6,0.53727]
[1753903782900,0.53724,3722.9,3722.7,0.53725]
[1753903783098,0.53726,3722.7,3722.5,1.4193]
[1753903783406,3.6664,3722.5,3722.4,0.53729]
[1753903783605,3.6664,3722.5,3722.4,1.95659]
[1753903784400,0.8455,3722.5,3722.4,3.46439]
[1753903784800,0.8455,3722.5,3722.4,2.87089]
[1753903785201,3.6664,3722.9,3722.8,1.95655]
[1753903785403,3.6664,3722.9,3722.8,1.4193]
[1753903785600,20.202,3723.2,3722.5,3.2078]
[1753903785908,0.8455,3723.1,3722.5,3.2078]
[1753903786099,20.202,3723.2,3722.5,3.2078]
[1753903786100,1.3941,3722.9,3722.5,3.2078]
[1753903786301,0.8455,3722.7,3722.6,0.53727]
[1753903786600,0.8455,3722.7,3722.6,1.95657]
[1753903786905,4.20361,3723.1,3723.0,0.53722]
[1753903787107,0.53721,3723.1,3722.9,0.53722]
[1753903787294,2.8209,3723.0,3722.9,0.53722]
[1753903787496,3.6664,3723.0,3722.9,1.95652]
[1753903787706,3.6664,3723.0,3722.9,0.53722]
[1753903788806,3.6664,3723.0,3722.9,1.95652]
[1753903789010,2.2396,3723.2,3723.1,0.5372]
[1753903789307,0.8455,3723.2,3723.1,2.8708]
[1753903789506,2.2396,3723.2,3723.1,2.8708]
[1753903789803,3.6664,3723.2,3723.1,1.9565]
[1753903790009,3.6664,3723.2,3723.1,0.5372]
[1753903790409,3.6664,3723.2,3723.1,1.9565]
[1753903790603,3.6664,3723.2,3723.1,2.8708]